bitfinex/quotes_SOLUSD_20251002
["timestamp","ask_amount","ask_price","bid_price","bid_amount"]
[1759408920591,15.28195562,226.99,226.92,0.69]
[1759408921814,15.28195562,226.99,226.9,2.83]
[1759408922022,1.46371388,226.98,226.9,34.33]
[1759408922314,1.46371388,226.98,226.9,2.83]
[1759408922806,26.29565666,226.99,226.9,2.83]
[1759408923105,26.29565666,226.99,226.91,0.69]
[1759408923896,27.75937054,226.99,226.91,0.69]
[1759408924296,16.7456695,226.99,226.91,0.69]
[1759408925824,16.7456695,226.99,226.91,5.09699587]
[1759408927085,15.28195562,226.99,226.91,5.09699587]
[1759408927286,16.7456695,226.99,226.91,5.09699587]
[1759408928812,10.87647521,226.99,226.92,5.09682325]
[1759408929018,15.28197462,226.99,226.92,0.69]
[1759408929927,16.7456885,226.99,226.9,39.36717673]
[1759408930220,16.7456885,226.99,226.9,2.83]
[1759408930221,10.87647521,226.95,226.9,2.83]
[1759408930386,10.87647521,226.93,226.9,2.83]
[1759408930590,10.87647521,226.95,226.9,2.83]
[1759408930591,10.87647521,226.91,226.9,2.83]
[1759408930811,16.74722271,226.91,226.9,2.83]
[1759408934688,48.16722271,226.91,226.9,2.83]
[1759408937719,68.16722271,226.91,226.9,1e-08]
[1759408937924,10.87647521,226.87,226.78,0.69]
[1759408938224,1.46371388,226.82,226.78,0.69]
[1759408938521,1.46371388,226.82,226.72,31.82641835]
[1759408938522,1.46371388,226.82,226.79,0.69]
[1759408938926,1.46371388,226.82,226.8,0.69]
[1759408939223,42.29647521,226.87,226.73,4.41053235]
[1759408939224,10.87647521,226.87,226.81,0.69]
[1759408939523,10.87647521,226.88,226.81,0.69]
[1759408939705,20.8,226.88,226.82,4.40878229]
[1759408940029,20.8,226.88,226.83,0.69]
[1759408941004,20.8,226.88,226.83,5.09855888]
[1759408941230,20.8,226.88,226.84,0.69]
[1759408941822,20.8,226.88,226.85,0.69]
[1759408944034,20.8,226.88,226.86,0.71]
[1759408944847,20.8,226.88,226.82,4.40874054]
[1759408945049,1.46371388,226.85,226.81,0.71]
[1759408945219,1.46371388,226.83,226.78,0.71]
[1759408945425,1.46371388,226.83,226.79,0.71]
[1759408945722,1.46371388,226.83,226.8,0.71]
[1759408946146,5.87232807,226.83,226.8,0.71]
[1759408946347,1.46371388,226.81,226.78,0.71]
[1759408946525,1.46371388,226.82,226.79,0.71]
[1759408946926,1.46371388,226.82,226.8,0.71]
[1759408947121,1.46371388,226.82,226.78,0.71]
[1759408947341,1.46371388,226.82,226.79,0.71]
[1759408947719,1.46371388,226.82,226.74,4.4103176]
[1759408947720,1.46371388,226.82,226.8,0.71]
[1759408948347,2.29075114,226.82,226.78,0.71]
[1759408948554,2.29075114,226.82,226.75,4.40996288]
[1759408948849,2.29075114,226.82,226.76,0.71]
[1759408949034,2.29075114,226.82,226.76,5.11987701]
[1759408949234,2.29075114,226.82,226.77,0.71]
[1759408949439,2.29075114,226.82,226.78,0.71]
[1759408949646,2.29075114,226.8,226.74,0.71]
[1759408949835,2.29075114,226.75,226.69,5.12129019]
[1759408950150,10.87647521,226.79,226.69,5.12129019]
[1759408950151,2.29075114,226.73,226.69,5.12129019]
[1759408950325,2.29075114,226.73,226.7,0.71]
[1759408950526,2.29075114,226.73,226.71,0.71]
[1759408950757,10.87647521,226.79,226.71,0.71]
[1759408950932,2.29075114,226.74,226.67,4.61153017]
[1759408951134,2.29075114,226.74,226.69,4.4113106]
[1759408951337,2.29075114,226.74,226.7,0.71]
[1759408951541,2.29075114,226.77,226.71,0.71]
[1759408953363,10.87647521,226.79,226.71,5.12089784]
[1759408953537,15.2859037,226.79,226.72,0.71]
[1759408953866,2.29075114,226.77,226.72,0.71]
[1759408954031,2.29075114,226.75,226.72,0.71]
[1759408954347,2.29075114,226.75,226.7,4.41109673]
[1759408954551,2.29075114,226.75,226.7,0.71]
[1759408954740,2.29075114,226.75,226.71,0.71]
[1759408954942,2.29075114,226.75,226.68,4.41134384]
[1759408955140,2.29075114,226.75,226.71,0.71]
[1759408955367,2.29075114,226.75,226.72,0.71]
[1759408955657,2.29075114,226.77,226.72,0.71]
[1759408955958,2.29075114,226.77,226.73,0.71]
[1759408956126,2.29075114,226.76,226.73,0.71]
[1759408956842,2.29075114,226.76,226.71,4.41084206]
[1759408957059,2.29075114,226.76,226.71,0.71]
[1759408957250,2.29075114,226.76,226.72,0.71]
[1759408957958,2.29075114,226.76,226.73,0.71]
[1759408958586,10.87647521,226.79,226.74,0.71]
[1759408958734,10.87647521,226.79,226.69,15.4395871]
[1759408958936,10.87647521,226.79,226.7,0.71]
[1759408959571,9.00552227,226.84,226.72,20.8]
[1759408959737,11.29627341,226.84,226.73,0.71]
[1759408960154,4.59231979,226.82,226.73,0.71]
[1759408960351,15.2854773,226.81,226.73,0.71]
[1759408960564,15.2854773,226.81,226.74,4.41033783]
[1759408960869,15.2854773,226.81,226.69,11.0282765]
[1759408960870,2.29075114,226.76,226.7,0.71]
[1759408961661,2.29075114,226.78,226.7,0.71]
[1759408962663,2.29075114,226.78,226.71,4.41092144]
[1759408962869,2.29075114,226.78,226.72,0.71]
[1759408963262,33.96722635,226.74,226.67,0.2]
[1759408963465,2.29075114,226.69,226.67,0.2]
[1759408964040,2.29075114,226.68,226.67,0.2]
[1759408966244,13.16722635,226.68,226.67,0.17715905]
[1759408970186,15.45797749,226.68,226.67,0.17715905]
[1759408970959,20.8,226.68,226.67,0.17715905]
[1759408971161,25.38150228,226.68,226.67,0.17715905]
[1759408972471,4.58150228,226.68,226.67,0.17715905]
[1759408972880,15.45797749,226.68,226.67,0.17715905]
[1759408973578,10.87647521,226.68,226.67,0.17715905]
[1759408973904,15.45797749,226.68,226.67,0.17715905]
[1759408976971,20.8,226.68,226.67,0.17715905]
[1759408977281,4.41134215,226.69,226.67,0.17715905]
[1759408977469,2.29075114,226.68,226.67,0.17715905]
[1759408977978,4.41134215,226.69,226.67,0.17715905]
[1759408978797,27.72810938,226.71,226.67,0.17715905]
[1759408979003,10.87647521,226.7,226.67,0.17715905]
[1759408979371,27.72810938,226.71,226.67,0.17715905]
[1759408979859,27.72810938,226.71,226.67,0.84715905]
[1759408980067,2.30315018,226.7,226.67,0.84715905]
[1759408980364,2.30315018,226.7,226.67,0.17715905]
[1759408980571,2.30315018,226.7,226.68,0.67]
[1759408980763,2.30315018,226.7,226.67,0.17715905]
[1759408980964,2.30315018,226.7,226.68,0.67]
[1759408981185,2.30315018,226.7,226.69,0.67]
[1759408982901,16.8113239,226.71,226.69,0.67]
[1759408983201,2.30288005,226.72,226.7,0.67]
[1759408983375,2.30288005,226.72,226.67,0.17715905]
[1759408983800,2.30288005,226.72,226.68,0.67]
[1759408983986,2.30288005,226.72,226.69,0.67]
[1759408984493,2.30288005,226.72,226.7,0.67]
[1759408985079,6.71368651,226.72,226.68,0.67]
[1759408985295,42.19647521,226.71,226.67,0.17715905]
[1759408986512,4.41111601,226.7,226.67,0.17715905]
[1759408988021,132.9,226.69,226.67,0.17715905]
[1759408988794,11.02779003,226.7,226.67,0.17715905]
[1759408988997,40.00432958,226.7,226.67,0.17715905]
[1759408992339,3.99554752,226.68,226.67,0.17715905]
[1759408992826,31.32,226.7,226.67,0.17715905]
[1759408992995,35.73115458,226.7,226.67,0.17715905]
[1759408993196,35.73115458,226.7,226.67,0.84715905]
[1759408993423,35.73115458,226.7,226.67,0.17715905]
[1759408994034,137.3115052,226.68,226.67,0.17715905]
[1759408994629,132.9,226.68,226.67,0.17715905]
[1759408995142,119.68006434,226.68,226.67,0.17715905]
[1759408999269,2.30288005,226.72,226.67,0.84715905]
[1759408999564,20.8,226.69,226.68,0.67]
[1759409000033,20.8,226.69,226.67,0.17715905]
[1759409000646,31.32,226.69,226.67,0.17715905]
[1759409000846,31.32,226.69,226.67,0.84715905]
[1759409001042,4.41098507,226.71,226.67,0.84715905]
[1759409001043,35.73098507,226.71,226.67,0.84715905]
[1759409001251,31.32,226.71,226.67,0.84715905]
[1759409001467,20.8,226.69,226.68,0.67]
[1759409001770,31.32,226.71,226.67,0.17715905]
[1759409001965,31.32,226.71,226.67,0.84715905]
[1759409002175,10.87647521,226.71,226.67,0.17715905]
[1759409002471,33.62288005,226.72,226.68,0.67]
[1759409002771,33.62288005,226.72,226.69,0.68]
[1759409003473,38.03364504,226.72,226.67,0.17715905]
[1759409003641,38.03364504,226.72,226.67,0.85715905]
[1759409004174,38.03364504,226.72,226.67,0.17715905]
[1759409004371,38.03364504,226.72,226.68,0.67]
[1759409005265,119.68006434,226.71,226.68,0.67]
[1759409006765,119.68006434,226.71,226.69,0.67]
[1759409006960,119.68006434,226.71,226.7,0.67]
[1759409007158,119.68006434,226.71,226.67,0.84715905]
[1759409007159,106.44496486,226.71,226.67,0.84715905]
[1759409007358,106.44496486,226.71,226.68,0.67]
[1759409007566,106.44496486,226.71,226.67,0.17715905]
[1759409007869,110.8559213,226.71,226.67,0.84715905]
[1759409008569,110.8559213,226.71,226.67,0.17715905]
[1759409009072,142.1759213,226.71,226.67,0.17715905]
[1759409011863,106.44496486,226.7,226.67,0.17715905]
[1759409012671,110.85624514,226.7,226.67,0.17715905]
[1759409013168,100.10555206,226.7,226.67,0.17715905]
[1759409013774,2.30320235,226.69,226.67,0.84715905]
[1759409014177,2.30320235,226.69,226.68,0.67]
[1759409016479,2.30320235,226.69,226.67,0.17715905]
[1759409017283,2.30320235,226.69,226.67,0.84715905]
[1759409017489,2.30320235,226.69,226.67,0.17715905]
[1759409017977,6.71453044,226.69,226.67,0.17715905]
[1759409018367,2.30320235,226.69,226.67,0.17715905]
[1759409018567,4.41132608,226.69,226.67,0.17715905]
[1759409018776,15.28739665,226.71,226.67,0.17715905]
[1759409020582,4.4113106,226.69,226.67,0.17715905]
[1759409022471,31.32,226.7,226.67,0.84715905]
[1759409023185,31.32,226.7,226.68,0.67]
[1759409023382,31.32,226.7,226.69,0.67]
[1759409023681,33.62312277,226.7,226.67,0.17715905]
[1759409023860,33.62312277,226.7,226.69,0.67]
[1759409024062,2.30312277,226.7,226.67,0.17715905]
[1759409024261,2.30312277,226.7,226.68,0.67]
[1759409024595,2.30312277,226.7,226.69,0.67]
[1759409025156,2.30312277,226.7,226.67,0.17715905]
[1759409025386,2.30312277,226.7,226.68,0.67]
[1759409025586,2.30312277,226.7,226.69,0.67]
[1759409028479,2.30312277,226.7,226.67,0.17715905]
[1759409028678,2.30312277,226.7,226.68,0.67]
[1759409028890,2.30312277,226.7,226.69,0.67]
[1759409029897,2.30312277,226.7,226.67,0.84715905]
[1759409030084,2.30312277,226.7,226.68,0.67]
[1759409030398,2.30312277,226.7,226.67,0.17715905]
[1759409030599,2.30312277,226.7,226.67,0.84715905]
[1759409031828,2.30312277,226.7,226.67,0.17715905]
[1759409032121,2.30312277,226.7,226.68,0.67]
[1759409033130,2.30312277,226.7,226.67,0.17715905]
[1759409033299,2.30312277,226.7,226.69,0.67]
[1759409034426,2.30312277,226.7,226.67,0.87715905]
[1759409035407,2.30312277,226.7,226.68,0.7]
[1759409035723,2.30312277,226.7,226.69,0.7]
[1759409037428,8.91124881,226.75,226.69,0.7]
[1759409037606,8.91124881,226.75,226.7,4.41111601]
[1759409037800,8.91124881,226.75,226.71,0.7]
[1759409037996,8.91124881,226.75,226.67,11.20640861]
[1759409037997,8.91124881,226.75,226.72,0.7]
[1759409041216,8.91124881,226.75,226.7,0.7]
[1759409041731,8.91124881,226.75,226.71,0.7]
[1759409042118,13.32143347,226.75,226.67,0.87715905]
[1759409042319,42.17647521,226.74,226.67,4.58883084]
[1759409042851,42.17647521,226.74,226.67,5.28883084]
[1759409043530,46.58689061,226.74,226.67,0.87715905]
[1759409044430,95.69427178,226.73,226.67,0.87715905]
[1759409045536,95.69427178,226.73,226.68,0.7]
[1759409046124,95.69427178,226.73,226.69,0.7]
[1759409046542,95.69427178,226.73,226.7,0.7]
[1759409046851,95.69427178,226.73,226.71,0.7]
[1759409047155,95.69427178,226.73,226.72,0.7]
[1759409051937,95.69427178,226.73,226.69,5.11112475]
[1759409052343,95.69427178,226.73,226.7,0.7]
[1759409052553,95.69427178,226.73,226.69,4.41112475]
[1759409052756,95.69427178,226.73,226.69,5.11112475]
[1759409053062,95.69427178,226.73,226.7,0.7]
[1759409053365,95.69427178,226.73,226.67,5.28874972]
[1759409053739,4.41112475,226.72,226.67,5.28874972]
[1759409053938,4.41112475,226.72,226.68,0.7]
[1759409054354,4.41112475,226.72,226.69,0.7]
[1759409055075,95.69427178,226.73,226.69,0.7]
[1759409055279,108.94369211,226.73,226.69,0.7]
[1759409055639,95.69427178,226.73,226.69,0.7]
[1759409056040,95.69427178,226.73,226.7,4.41111601]
[1759409056242,95.69427178,226.73,226.71,0.7]
[1759409057350,4.41111601,226.75,226.72,4.41072688]
[1759409057704,4.41111601,226.78,226.73,0.7]
[1759409058070,97.99637229,226.8,226.73,0.7]
[1759409058263,13.24591032,226.79,226.73,0.7]
[1759409059247,13.24591032,226.79,226.74,15.4361824]
[1759409059448,13.24591032,226.79,226.75,0.7]
[1759409059958,97.99637229,226.8,226.75,0.7]
[1759409060357,111.24169779,226.8,226.76,4.40994884]
[1759409060564,111.24169779,226.8,226.77,0.7]
[1759409061041,111.24169779,226.8,226.76,4.40994884]
[1759409061241,111.24169779,226.8,226.74,4.41029267]
[1759409061472,111.24169779,226.8,226.72,5.11055176]
[1759409061670,111.24169779,226.8,226.73,0.7]
[1759409062705,111.24169779,226.8,226.74,4.41033783]
[1759409062867,97.99637229,226.8,226.74,4.41033783]
[1759409063371,13.24649519,226.79,226.74,4.41033783]
[1759409063692,13.24649519,226.79,226.74,5.09033783]
[1759409064098,13.24649519,226.79,226.75,0.72]
[1759409064903,13.24649519,226.79,226.72,4.41063338]
[1759409065070,13.24649519,226.79,226.73,0.72]
[1759409066798,13.24649519,226.79,226.73,5.13038554]
[1759409067004,13.24649519,226.79,226.73,4.41038554]
[1759409067297,13.24649519,226.79,226.71,5.1307839]
[1759409067471,10.87647521,226.78,226.68,31.28]
[1759409067671,10.87647521,226.76,226.68,4.4113994]
[1759409067888,31.28,226.75,226.68,4.4113994]
[1759409068081,42.30993104,226.75,226.68,4.4113994]
[1759409070806,42.30993104,226.75,226.68,5.1313994]
[1759409071182,11.02993104,226.75,226.69,0.72]
[1759409071377,2.30210051,226.8,226.71,20.8]
[1759409071604,2.30210051,226.8,226.72,0.72]
[1759409071817,4.4113994,226.79,226.72,0.72]
[1759409072888,4.4113994,226.79,226.72,4.41068953]
[1759409073102,35.6713994,226.79,226.72,4.41068953]
[1759409073615,31.26,226.79,226.72,4.41068953]
[1759409073792,108.94193687,226.78,226.72,4.41068953]
[1759409074186,95.69427178,226.78,226.73,0.72]
[1759409074712,95.69427178,226.78,226.74,0.72]
[1759409075014,95.69427178,226.78,226.75,0.72]
[1759409075508,95.69427178,226.78,226.76,4.40994884]
[1759409075714,95.69427178,226.78,226.75,0.72]
[1759409075935,95.69427178,226.78,226.75,5.13011488]
[1759409077446,95.69427178,226.78,226.76,0.72]
[1759409077737,95.69427178,226.78,226.77,0.72]
[1759409078213,95.69427178,226.78,226.75,0.72]
[1759409078536,95.69427178,226.78,226.76,0.72]
[1759409080214,95.69427178,226.78,226.76,5.12980768]
[1759409080612,95.69427178,226.78,226.74,5.13016942]
[1759409080824,95.69427178,226.78,226.75,0.72]
[1759409081008,95.69427178,226.78,226.76,0.72]
[1759409081329,2.30210051,226.8,226.76,0.72]
[1759409081529,2.30210051,226.8,226.74,5.13016942]
[1759409082940,15.54742601,226.8,226.74,5.13016942]
[1759409083542,2.30210051,226.8,226.74,5.13016942]
[1759409083720,2.30210051,226.8,226.76,4.40994884]
[1759409083915,2.30210051,226.8,226.76,5.12994884]
[1759409086624,15.54742601,226.8,226.76,5.12994884]
[1759409087351,15.54742601,226.8,226.76,0.72]
[1759409087650,2.30210051,226.8,226.76,0.72]
[1759409087837,15.54742601,226.8,226.74,4.41033783]
[1759409088024,15.54742601,226.8,226.75,0.72]
[1759409088224,2.30210051,226.8,226.75,0.72]
[1759409088421,2.30210051,226.8,226.74,15.4361824]
[1759409088731,2.30210051,226.8,226.75,0.72]
[1759409089060,2.30210051,226.8,226.76,0.72]
[1759409089244,2.30210051,226.8,226.77,5.12962487]
[1759409089829,2.30210051,226.8,226.77,5.12970259]
[1759409090850,2.30210051,226.8,226.77,0.72]
[1759409091036,2.30210051,226.8,226.77,5.12973016]
[1759409091447,2.30210051,226.8,226.78,0.72]
[1759409091643,2.30210051,226.8,226.79,0.72]
[1759409092342,2.30210051,226.8,226.77,5.12973016]
[1759409092549,2.30210051,226.8,226.78,0.72]
[1759409093452,2.30210051,226.8,226.79,0.72]
[1759409093654,52.04,226.88,226.79,0.72]
[1759409093843,11.02584457,226.85,226.79,0.72]
[1759409094931,11.02584457,226.85,226.8,4.40917107]
[1759409095268,11.02584457,226.85,226.81,0.7]
[1759409097149,11.02584457,226.85,226.82,4.40878229]
[1759409097433,11.02584457,226.85,226.82,5.10878229]
[1759409097633,11.02584457,226.85,226.82,4.40878229]
[1759409099048,11.02584457,226.85,226.75,15.43550164]
[1759409099256,11.02584457,226.85,226.82,0.7]
[1759409100555,11.02584457,226.85,226.83,0.7]
[1759409100739,97.99581414,226.87,226.83,0.7]
[1759409101136,11.02375898,226.86,226.83,0.7]
[1759409102751,11.02375898,226.86,226.83,4.40855215]
[1759409102951,97.99581414,226.87,226.84,0.7]
[1759409103148,97.99581414,226.87,226.85,0.7]
[1759409103345,95.69427178,226.87,226.85,0.7]
[1759409104249,95.69427178,226.87,226.86,0.7]
[1759409104741,95.69427178,226.87,226.86,5.10800493]
[1759409105072,95.69427178,226.87,226.84,5.10833261]
[1759409105656,95.69427178,226.87,226.8,0.7]
[1759409105871,97.99554436,226.87,226.8,0.7]
[1759409106471,97.99554436,226.87,226.8,5.10902358]
[1759409106693,13.24240217,226.86,226.81,0.7]
[1759409106898,13.24240217,226.86,226.82,4.40878229]
[1759409107206,7.06188698,226.88,226.83,0.7]
[1759409107776,7.06188698,226.88,226.83,31.92]
[1759409108103,7.06188698,226.88,226.84,0.7]
[1759409108279,7.06188698,226.88,226.85,4.40819925]
[1759409108604,7.06188698,226.88,226.86,0.7]
[1759409109883,7.06188698,226.88,226.85,46.64869737]
[1759409110096,7.06188698,226.88,226.87,0.7]
[1759409110304,7.06188698,226.88,226.87,5.10781064]
[1759409112615,7.06188698,226.88,226.87,36.32781064]
[1759409112918,7.06188698,226.88,226.87,5.10781064]
[1759409113224,7.06188698,226.88,226.87,36.32781064]
[1759409114037,7.06188698,226.88,226.87,5.10781064]
[1759409114228,7.06188698,226.88,226.87,36.32781064]
[1759409114402,7.06188698,226.88,226.87,5.10781064]
[1759409114721,7.06188698,226.88,226.87,36.32781064]
[1759409115024,7.06188698,226.88,226.87,5.10781064]
[1759409115324,7.06188698,226.88,226.87,36.32781064]
[1759409118630,7.06188698,226.88,226.87,36.30781064]
[1759409119036,0.1,226.93,226.87,47.32733724]
[1759409119327,0.1,226.93,226.88,0.7]
[1759409119622,0.1,226.93,226.89,15.42597733]
[1759409121528,0.1,226.93,226.92,0.7]
[1759409121740,0.1,226.93,226.91,5.10688327]
[1759409122534,0.1,226.93,226.92,0.7]
[1759409123213,0.1,226.93,226.92,5.10683941]
[1759409125611,0.1,226.93,226.9,35.60715009]
[1759409125812,0.1,226.93,226.91,31.2]
[1759409126539,0.1,226.93,226.91,31.9]
[1759409126737,0.1,226.93,226.92,0.7]
[1759409127441,0.1,226.93,226.92,5.10683941]
[1759409128333,0.1,226.93,226.92,36.30683941]
[1759409130519,0.1,226.93,226.92,5.10683941]
[1759409131035,0.1,226.93,226.91,4.40703362]
[1759409131240,0.1,226.93,226.92,31.18]
[1759409131439,0.1,226.93,226.92,31.88]
[1759409132424,0.1,226.93,226.92,36.28683941]
[1759409135245,0.1,226.93,226.9,4.40713594]
[1759409135546,0.1,226.93,226.9,36.28713594]
[1759409135715,0.1,226.93,226.91,0.7]
[1759409136041,0.1,226.93,226.9,35.58713594]
[1759409136237,0.1,226.93,226.91,0.7]
[1759409136413,0.1,226.93,226.92,5.10683941]
[1759409137837,0.1,226.93,226.92,36.28683941]
[1759409141242,0.1,226.93,226.92,5.10683941]
[1759409141443,0.1,226.93,226.92,4.40683941]
[1759409141629,0.1,226.93,226.92,35.58683941]
[1759409142439,0.1,226.93,226.92,36.28683941]
[1759409142817,0.1,226.93,226.92,35.58683941]
[1759409143528,0.1,226.93,226.92,31.18]
[1759409143726,0.1,226.93,226.9,25.20716024]
[1759409143931,0.1,226.93,226.9,56.36716024]
[1759409144139,0.1,226.93,226.91,0.7]
[1759409144344,0.1,226.93,226.91,5.10685938]
[1759409144723,0.1,226.93,226.91,4.40685938]
[1759409144920,0.1,226.93,226.92,0.7]
[1759409145121,0.1,226.93,226.91,31.16]
[1759409146453,0.1,226.93,226.92,5.10683941]
[1759409146655,0.1,226.93,226.92,4.40683941]
[1759409147273,0.1,226.93,226.92,5.10683941]
[1759409153042,0.1,226.93,226.92,36.26683941]
[1759409153454,0.1,226.93,226.92,31.86]
[1759409154025,0.1,226.93,226.9,0.71]
[1759409154228,0.1,226.93,226.91,31.16]
[1759409154526,0.1,226.93,226.92,4.40683941]
[1759409154824,0.1,226.93,226.91,31.16]
[1759409155322,0.1,226.93,226.91,31.87]
[1759409156231,0.1,226.93,226.91,36.27694993]
[1759409157253,0.1,226.93,226.92,0.71]
[1759409157551,0.1,226.93,226.92,5.11683941]
[1759409157952,0.1,226.93,226.92,4.40683941]
[1759409158330,0.1,226.93,226.91,31.16]
[1759409158527,0.1,226.93,226.89,4.40740421]
[1759409158749,0.1,226.93,226.87,4.40781064]
[1759409158949,0.1,226.93,226.87,35.56781064]
[1759409160052,0.1,226.93,226.87,36.27781064]
[1759409160430,0.1,226.93,226.88,0.71]
[1759409160932,0.1,226.93,226.89,31.14]
[1759409161149,0.1,226.93,226.89,31.85]
[1759409161343,0.1,226.93,226.9,0.71]
[1759409161653,0.1,226.93,226.88,31.14]
[1759409161954,20.8,226.89,226.82,0.71]
[1759409162134,20.8,226.89,226.81,31.14]
[1759409162338,25.20760943,226.89,226.81,34.75882425]
[1759409163551,25.20760943,226.89,226.82,5.1186608]
[1759409164238,20.8,226.89,226.82,5.1186608]
[1759409164956,20.8,226.89,226.83,0.71]
[1759409165652,2.30129898,226.88,226.84,4.40839358]
[1759409165829,2.30129898,226.88,226.85,0.71]
[1759409168355,95.69427178,226.92,226.86,0.71]
[1759409168536,95.69427178,226.92,226.86,31.85]
[1759409168741,2.30090461,226.91,226.87,0.71]
[1759409169247,95.69427178,226.92,226.87,0.71]
[1759409170146,95.69427178,226.92,226.88,0.71]
[1759409170359,95.69427178,226.92,226.89,0.71]
[1759409170543,95.69427178,226.92,226.86,31.14]
[1759409170862,95.69427178,226.92,226.87,31.14]
[1759409171064,2.30082847,226.91,226.85,31.14]
[1759409171959,6.70791293,226.91,226.84,0.71]
[1759409172160,6.70791293,226.91,226.82,4.40878229]
[1759409172351,6.70791293,226.91,226.82,36.25878229]
[1759409172766,6.70791293,226.91,226.83,0.71]
[1759409174272,13.24181766,226.9,226.84,4.40839358]
[1759409174468,13.24181766,226.9,226.85,0.71]
[1759409175274,13.24181766,226.9,226.85,5.11808114]
[1759409175775,2.30082847,226.91,226.85,4.40808114]
[1759409175962,15.54206167,226.91,226.86,0.71]
[1759409176165,2.30082847,226.91,226.86,0.71]
[1759409177053,0.1,226.93,226.87,4.40781064]
[1759409177250,0.1,226.93,226.88,31.85]
[1759409177767,0.1,226.93,226.89,0.71]
[1759409177972,0.1,226.93,226.89,31.14]
[1759409178176,0.1,226.93,226.87,35.54781064]
[1759409178480,0.1,226.93,226.9,0.71]
[1759409178653,0.1,226.93,226.91,0.71]
[1759409179085,0.1,226.93,226.91,5.11690176]
[1759409179578,0.1,226.93,226.91,0.71]
[1759409179777,0.1,226.93,226.88,4.40745771]
[1759409179982,0.1,226.93,226.88,35.54745771]
[1759409180150,0.1,226.93,226.88,36.25745771]
[1759409180550,0.1,226.93,226.89,0.71]
[1759409180782,0.1,226.93,226.9,0.71]
[1759409180975,0.1,226.93,226.91,0.71]
[1759409181566,0.1,226.93,226.91,5.11702342]
[1759409181766,0.1,226.93,226.92,0.71]
[1759409183387,0.1,226.93,226.92,5.11683941]
[1759409185182,0.1,226.93,226.92,0.71]
[1759409185562,0.1,226.93,226.9,0.72]
[1759409186391,0.1,226.93,226.91,0.72]
[1759409187974,0.1,226.93,226.9,4.40715467]
[1759409188181,0.1,226.93,226.91,0.72]
[1759409189111,0.1,226.93,226.92,0.72]
[1759409190391,0.1,226.93,226.9,0.72]
[1759409190692,0.1,226.93,226.91,0.72]
[1759409191485,0.1,226.93,226.89,0.72]
[1759409191696,4.50666984,226.93,226.86,0.72]
[1759409191897,102.69573266,226.92,226.86,0.72]
[1759409192080,107.10264935,226.92,226.86,0.72]
[1759409192281,100.10118847,226.92,226.86,0.72]
[1759409192677,13.24064879,226.91,226.86,0.72]
[1759409193187,13.24064879,226.91,226.87,0.72]
[1759409193384,95.69427178,226.9,226.87,0.72]
[1759409193589,95.69427178,226.9,226.88,0.72]
[1759409193974,95.69427178,226.9,226.84,4.40839358]
[1759409194295,95.69427178,226.9,226.88,0.72]
[1759409194494,95.69427178,226.9,226.85,0.72]
[1759409194798,95.69427178,226.9,226.86,0.72]
[1759409195988,95.69427178,226.89,226.83,0.72]
[1759409196384,108.93608944,226.89,226.83,0.72]
[1759409198397,108.93608944,226.89,226.83,5.12851663]
[1759409198994,95.69427178,226.88,226.83,5.12851663]
[1759409199502,95.69427178,226.88,226.81,5.12880488]
[1759409199678,95.69427178,226.88,226.81,4.40880488]
[1759409199997,95.69427178,226.88,226.81,5.12880488]
[1759409201684,95.69427178,226.88,226.82,0.72]
[1759409202605,95.69427178,226.88,226.82,5.12863513]
[1759409203005,95.69427178,226.87,226.8,0.72]
[1759409203183,95.69427178,226.87,226.79,5.12918906]
[1759409203500,95.69427178,226.86,226.79,5.12918906]
[1759409204079,108.93842779,226.86,226.79,5.12918906]
[1759409205097,100.10238963,226.86,226.79,5.12918906]
[1759409205307,13.24415601,226.85,226.79,5.12918906]
[1759409206080,131.22235879,226.86,226.79,5.12918906]
[1759409206281,144.4665148,226.86,226.79,5.12918906]
[1759409206589,140.05842779,226.86,226.79,5.12918906]